fUST/lending_fUST_20250530
["ID","MTS","AMOUNT","RATE_DAILY","PERIOD"]
[363173998,1748609450471,-800.0,0.0002075,2]
[363173999,1748609450485,-507.26848738,0.00020756,2]
[363174000,1748609450495,-1000.0,0.00020756,2]
[363174001,1748609450505,-1000.0,0.00020756,2]
[363174002,1748609450514,-1000.0,0.00020756,2]
[363174003,1748609450525,-215.0738,0.00020756,2]
[363174004,1748609450535,-151.0,0.00020762,2]
[363174005,1748609450544,-4608.15476834,0.00020762,3]
[363174006,1748609450554,-1000.0,0.00020765,2]
[363174007,1748609450563,-800.0,0.00020772,2]
[363174008,1748609450573,-1000.0,0.0002078,2]
[363174009,1748609450582,-800.0,0.00020792,2]
[363174010,1748609450591,-800.0,0.00020808,2]
[363174011,1748609450601,-1000.0,0.00020821,2]
[363174012,1748609450611,-430.0,0.00020821,2]
[363174013,1748609450620,-175.65118638,0.00020821,2]
[363174014,1748609450630,-430.0,0.00020821,2]
[363174015,1748609450639,-163.20819819,0.00020821,2]
[363174016,1748609450649,-430.0,0.00020821,2]
[363174017,1748609450658,-430.0,0.00020821,2]
[363174018,1748609450667,-774.98,0.00020821,2]
[363174019,1748609450680,-670.78,0.00020821,2]
[363174020,1748609450689,-430.0,0.00020821,2]
[363174021,1748609450699,-430.0,0.00020821,2]
[363174022,1748609450708,-430.0,0.00020821,2]
[363174023,1748609450717,-624.65,0.00020821,2]
[363174024,1748609450727,-430.0,0.00020821,2]
[363174025,1748609450737,-430.0,0.00020821,2]
[363174026,1748609450749,-302.33280278,0.00020821,2]
[363174027,1748609450759,-1175.6,0.00020821,2]
[363174028,1748609450768,-430.0,0.00020821,2]
[363174029,1748609450778,-430.0,0.00020821,2]
[363174030,1748609450787,-430.0,0.00020821,2]
[363174031,1748609450796,-430.0,0.00020821,2]
[363174032,1748609450806,-430.0,0.00020821,2]
[363174033,1748609450815,-2140.63,0.00020821,2]
[363174034,1748609450824,-430.0,0.00020821,2]
[363174035,1748609450834,-1378.27,0.00020821,2]
[363174036,1748609450845,-430.0,0.00020821,2]
[363174037,1748609450856,-940.85,0.00020821,2]
[363174038,1748609450865,-4666.86,0.00020821,2]
[363174039,1748609450875,-430.0,0.00020821,2]
[363174040,1748609450884,-430.0,0.00020821,2]
[363174041,1748609450894,-674.97,0.00020821,2]
[363174042,1748609450902,-430.0,0.00020821,2]
[363174043,1748609450912,-483.68,0.00020821,2]
[363174044,1748609450923,-510.09,0.00020821,2]
[363174045,1748609450933,-2216.44,0.00020821,2]
[363174046,1748609450942,-806.71,0.00020821,2]
[363174047,1748609450951,-643.55,0.00020821,2]
[363174048,1748609450961,-1572.01,0.00020821,2]
[363174049,1748609450971,-3998.41,0.00020821,2]
[363174050,1748609450980,-453.29,0.00020821,2]
[363174051,1748609450989,-1322.02,0.00020821,2]
[363174052,1748609450998,-6232.04,0.00020821,2]
[363174053,1748609451008,-535.86,0.00020821,2]
[363174054,1748609451017,-453.44,0.00020821,2]
[363174055,1748609451026,-430.0,0.00020821,2]
[363174056,1748609451035,-601.27,0.00020821,2]
[363174057,1748609451045,-687.17,0.00020821,2]
[363174058,1748609451055,-817.33,0.00020821,2]
[363174059,1748609451065,-430.0,0.00020821,2]
[363174060,1748609451074,-5958.29,0.00020821,2]
[363174061,1748609451083,-634.0,0.00020821,2]
[363174062,1748609451092,-430.0,0.00020821,2]
[363174063,1748609451102,-846.26,0.00020821,2]
[363174064,1748609451111,-430.0,0.00020821,2]
[363174065,1748609451120,-898.65,0.00020821,2]
[363174066,1748609451130,-888.2,0.00020821,2]
[363174067,1748609451139,-1075.5,0.00020821,2]
[363174068,1748609451149,-644.12,0.00020821,2]
[363174069,1748609451158,-430.0,0.00020821,2]
[363174070,1748609451167,-430.0,0.00020821,2]
[363174071,1748609451179,-4652.48,0.00020821,2]
[363174072,1748609451188,-675.1,0.00020821,2]
[363174073,1748609451198,-1421.13,0.00020821,2]
[363174074,1748609451207,-228.0,0.00020821,2]
[363174075,1748609451217,-3397.81,0.00020821,2]
[363174076,1748609451226,-871.23,0.00020821,2]
[363174077,1748609451236,-430.0,0.00020821,2]
[363174078,1748609451245,-430.0,0.00020821,2]
[363174079,1748609451255,-1965.23,0.00020821,2]
[363174080,1748609451265,-938.36,0.00020821,2]
[363174081,1748609451274,-430.0,0.00020821,2]
[363174082,1748609451284,-4550.06,0.00020821,2]
[363174083,1748609451294,-1261.25,0.00020821,2]
[363174084,1748609451305,-1022.29,0.00020821,2]
[363174085,1748609451314,-541.22,0.00020821,2]
[363174086,1748609451324,-1016.79,0.00020821,2]
[363174087,1748609451334,-430.0,0.00020821,2]
[363174088,1748609451343,-430.0,0.00020821,2]
[363174089,1748609451354,-430.0,0.00020821,2]
[363174090,1748609451363,-1673.97,0.00020821,2]
[363174091,1748609451373,-475.13,0.00020821,2]
[363174092,1748609451383,-2156.88,0.00020821,2]
[363174093,1748609451393,-431.52,0.00020821,2]
[363174094,1748609451402,-646.77,0.00020821,2]
[363174095,1748609451412,-430.0,0.00020821,2]
[363174096,1748609451423,-2441.53,0.00020821,2]
[363174097,1748609451433,-430.0,0.00020821,2]
[363174098,1748609451443,-1350.07,0.00020821,2]
[363174099,1748609451453,-430.0,0.00020821,2]
[363174100,1748609451463,-3081.68,0.00020821,2]
[363174101,1748609451476,-2025.32,0.00020821,2]
[363174102,1748609451485,-659.88,0.00020821,2]
[363174103,1748609451495,-611.27,0.00020821,2]
[363174104,1748609451504,-430.0,0.00020821,2]
[363174105,1748609451514,-800.0,0.00020826,2]
[363174106,1748609451525,-800.0,0.00020826,2]
[363174107,1748609451534,-573.09247553,0.00020828,2]
[363174108,1748609451543,-800.0,0.00020839,2]
[363174109,1748609451558,-800.0,0.00020875,2]
[363174110,1748609451568,-2176.89934839,0.00020882,7]
[363174111,1748609451578,-800.0,0.00020887,2]
[363174112,1748609451587,-961.0,0.0002089,2]
[363174113,1748609451596,-708.0,0.0002089,2]
[363174114,1748609451606,-2228.0,0.0002089,2]
[363174115,1748609451615,-405.0,0.0002089,2]
[363174116,1748609451625,-800.0,0.00020894,2]
[363174117,1748609451634,-800.0,0.00020908,2]
[363174118,1748609451644,-160.0,0.00020912,3]
[363174119,1748609451654,-1316.7723605,0.00020917,2]
[363174120,1748609451663,-4608.15476834,0.00020934,4]
[363174121,1748609451674,-2000.0,0.00020986,2]
[363174122,1748609451683,-281.46897646,0.00020995,2]
[363174123,1748609451693,-500.0,0.00021,2]
[363174124,1748609451702,-200.38581031,0.00021,2]
[363174125,1748609451712,-3000.0,0.00021,30]
[363174126,1748609451722,-3000.0,0.00021,2]
[363174127,1748609451731,-196.0,0.00021,5]
[363174128,1748609451741,-196.0,0.00021,5]
[363174129,1748609451750,-196.0,0.00021,5]
[363174130,1748609451760,-273.0,0.00021,2]
[363174131,1748609451769,-3000.0,0.0002101,30]
[363174132,1748609451778,-3000.0,0.0002101,2]
[363174133,1748609451788,-3000.0,0.0002102,30]
[363174134,1748609451797,-3000.0,0.0002102,2]
[363174135,1748609451807,-4658.921562,0.0002103,30]
[363174136,1748609451816,-3000.0,0.0002103,2]
[363174137,1748609451825,-5000.0,0.00021031,2]
[363174138,1748609451835,-3000.0,0.0002104,2]
[363174139,1748609451845,-223.78757353,0.00021047,2]
[363174140,1748609451854,-1590.05879371,0.00021047,2]
[363174141,1748609451863,-1500.0,0.00021047,2]
[363174142,1748609451873,-3000.0,0.0002105,2]
[363174143,1748609451882,-3000.0,0.0002106,2]
[363174144,1748609451892,-1236.9568915,0.00021067,7]
[363174145,1748609451902,-3000.0,0.0002107,2]
[363174146,1748609451913,-3000.0,0.0002108,2]
[363174147,1748609451923,-211.86160502,0.00021083,2]
[363174148,1748609451933,-1500.0,0.00021083,2]
[363174149,1748609451943,-3000.0,0.0002109,2]
[363174150,1748609451953,-430.0,0.00021095,2]
[363174151,1748609451963,-373.4,0.00021095,2]
[363174152,1748609451973,-477.71334353,0.00021095,2]
[363174153,1748609451982,-430.0,0.00021095,2]
[363174154,1748609451992,-774.98,0.00021095,2]
[363174155,1748609452001,-670.78,0.00021095,2]
[363174156,1748609452011,-430.0,0.00021095,2]
[363174157,1748609452021,-430.0,0.00021095,2]
[363174158,1748609452030,-430.0,0.00021095,2]
[363174159,1748609452040,-624.65,0.00021095,2]
[363174160,1748609452049,-430.0,0.00021095,2]
[363174161,1748609452059,-430.0,0.00021095,2]
[363174162,1748609452069,-1175.6,0.00021095,2]
[363174163,1748609452079,-430.0,0.00021095,2]
[363174164,1748609452088,-430.0,0.00021095,2]
[363174165,1748609452098,-171.0,0.00021095,2]
[363174166,1748609452107,-430.0,0.00021095,2]
[363174167,1748609452117,-263.71315985,0.00021095,2]
[363174168,1748609452127,-2140.63,0.00021095,2]
[363174169,1748609452136,-430.0,0.00021095,2]
[363174170,1748609452147,-1378.27,0.00021095,2]
[363174171,1748609452156,-430.0,0.00021095,2]
[363174172,1748609452166,-940.85,0.00021095,2]
[363174173,1748609452178,-4666.86,0.00021095,2]
[363174174,1748609452188,-430.0,0.00021095,2]
[363174175,1748609452198,-430.0,0.00021095,2]
[363174176,1748609452208,-674.97,0.00021095,2]
[363174177,1748609452218,-430.0,0.00021095,2]
[363174178,1748609452227,-483.68,0.00021095,2]
[363174179,1748609452237,-510.09,0.00021095,2]
[363174180,1748609452247,-2216.44,0.00021095,2]
[363174181,1748609452257,-806.71,0.00021095,2]
[363174182,1748609452266,-643.55,0.00021095,2]
[363174183,1748609452276,-1572.01,0.00021095,2]
[363174184,1748609452286,-3998.41,0.00021095,2]
[363174185,1748609452296,-453.29,0.00021095,2]
[363174186,1748609452306,-1322.02,0.00021095,2]
[363174187,1748609452316,-6232.04,0.00021095,2]
[363174188,1748609452325,-535.86,0.00021095,2]
[363174189,1748609452335,-453.44,0.00021095,2]
[363174190,1748609452344,-430.0,0.00021095,2]
[363174191,1748609452354,-601.27,0.00021095,2]
[363174192,1748609452364,-687.17,0.00021095,2]
[363174193,1748609452373,-817.33,0.00021095,2]
[363174194,1748609452383,-430.0,0.00021095,2]
[363174195,1748609452392,-5958.29,0.00021095,2]
[363174196,1748609452402,-634.0,0.00021095,2]
[363174197,1748609452412,-430.0,0.00021095,2]
[363174198,1748609452422,-846.26,0.00021095,2]
[363174199,1748609452432,-430.0,0.00021095,2]
[363174200,1748609452442,-898.65,0.00021095,2]
[363174201,1748609452451,-888.2,0.00021095,2]
[363174202,1748609452461,-1075.5,0.00021095,2]
[363174203,1748609452472,-644.12,0.00021095,2]
[363174204,1748609452485,-430.0,0.00021095,2]
[363174205,1748609452495,-430.0,0.00021095,2]
[363174206,1748609452505,-4652.48,0.00021095,2]
[363174207,1748609452518,-675.1,0.00021095,2]
[363174208,1748609452528,-1421.13,0.00021095,2]
[363174209,1748609452538,-3397.81,0.00021095,2]
[363174210,1748609452547,-871.23,0.00021095,2]
[363174211,1748609452559,-430.0,0.00021095,2]
[363174212,1748609452570,-430.0,0.00021095,2]
[363174213,1748609452579,-1965.23,0.00021095,2]
[363174214,1748609452588,-938.36,0.00021095,2]
[363174215,1748609452598,-430.0,0.00021095,2]
[363174216,1748609452608,-4550.06,0.00021095,2]
[363174217,1748609452618,-1261.25,0.00021095,2]
[363174218,1748609452628,-1022.29,0.00021095,2]
[363174219,1748609452637,-541.22,0.00021095,2]
[363174220,1748609452647,-1016.79,0.00021095,2]
[363174221,1748609452656,-430.0,0.00021095,2]
[363174222,1748609452666,-430.0,0.00021095,2]
[363174223,1748609452678,-430.0,0.00021095,2]
[363174224,1748609452688,-1673.97,0.00021095,2]
[363174225,1748609452697,-475.13,0.00021095,2]
[363174226,1748609452707,-2156.88,0.00021095,2]
[363174227,1748609452717,-431.52,0.00021095,2]
[363174228,1748609452726,-646.77,0.00021095,2]
[363174229,1748609452735,-430.0,0.00021095,2]
[363174230,1748609452745,-2441.53,0.00021095,2]
[363174231,1748609452872,-430.0,0.00021095,2]
[363174232,1748609452883,-1350.07,0.00021095,2]
[363174233,1748609452893,-430.0,0.00021095,2]
[363174234,1748609452902,-3081.68,0.00021095,2]
[363174235,1748609452913,-2025.32,0.00021095,2]
[363174236,1748609452925,-659.88,0.00021095,2]
[363174237,1748609452935,-611.27,0.00021095,2]
[363174238,1748609452944,-430.0,0.00021095,2]
[363174239,1748609452954,-3000.0,0.000211,2]
[363174240,1748609452964,-212.7380601,0.000211,30]
[363174241,1748609452974,-12663.11115519,0.000211,30]
[363174242,1748609452983,-4608.15476834,0.00021107,4]
[363174243,1748609452992,-3000.0,0.0002111,2]
[363174244,1748609453002,-3000.0,0.0002112,2]
[363174245,1748609453011,-2176.89934839,0.00021125,9]
[363174246,1748609453022,-3000.0,0.0002113,2]
[363174247,1748609453032,-3000.0,0.0002114,2]
[363174248,1748609453042,-564.54710437,0.00021144,2]
[363174249,1748609453051,-1500.0,0.00021144,2]
[363174250,1748609453062,-1500.0,0.00021144,2]
[363174251,1748609453071,-500.0,0.00021144,2]
[363174252,1748609453080,-1500.0,0.00021144,2]
[363174253,1748609453090,-3000.0,0.0002115,2]
[363174254,1748609453100,-169.31565096,0.00021151,2]
[363174255,1748609453109,-3000.0,0.0002116,2]
[363174256,1748609453118,-3000.0,0.0002117,2]
[363174257,1748609453127,-4583.06672461,0.0002117,2]
[363174258,1748609453137,-500.0,0.00021176,2]
[363174259,1748609453146,-500.87972083,0.00021176,2]
[363174260,1748609453156,-3000.0,0.0002118,2]
[363174261,1748609453166,-3000.0,0.0002119,2]
[363174262,1748609453181,-3000.0,0.000212,2]
[363174263,1748609453190,-3000.0,0.0002121,2]
[363174264,1748609453200,-3000.0,0.0002122,2]
[363174265,1748609453210,-3000.0,0.0002123,2]
[363174266,1748609453219,-169.31565096,0.00021233,2]
[363174267,1748609453229,-3000.0,0.0002124,2]
[363174268,1748609453239,-3000.0,0.0002125,2]
[363174269,1748609453248,-3908.78,0.0002125,2]
[363174270,1748609453259,-3000.0,0.0002126,2]
[363174271,1748609453269,-507.57693645,0.00021269,2]
[363174272,1748609453279,-3000.0,0.0002127,2]
[363174273,1748609453289,-4608.15476834,0.00021279,5]
[363174274,1748609453299,-3000.0,0.0002128,2]
[363174275,1748609453309,-500.0,0.00021284,2]
[363174276,1748609453319,-2000.0,0.00021288,2]
[363174277,1748609453328,-3000.0,0.0002129,2]
[363174278,1748609453338,-671.21612626,0.00021294,2]
[363174279,1748609453348,-3000.0,0.000213,2]
[363174280,1748609453358,-369.90684858,0.00021304,2]
[363174281,1748609453367,-531.61500946,0.00021304,2]
[363174282,1748609453377,-1500.0,0.00021304,2]
[363174283,1748609453387,-3000.0,0.0002131,2]
[363174284,1748609453397,-3000.0,0.0002132,2]
[363174285,1748609453406,-3000.0,0.0002133,2]
[363174286,1748609453416,-3000.0,0.0002134,2]
[363174287,1748609453432,-169.31565096,0.00021342,2]
[363174288,1748609453442,-3000.0,0.0002135,2]
[363174289,1748609453454,-2176.89934839,0.00021369,10]
[363174290,1748609453463,-430.0,0.00021369,2]
[363174291,1748609453475,-430.0,0.00021369,2]
[363174292,1748609453490,-774.98,0.00021369,2]
[363174293,1748609453499,-670.78,0.00021369,2]
[363174294,1748609453509,-430.0,0.00021369,2]
[363174295,1748609453521,-430.0,0.00021369,2]
[363174296,1748609453530,-430.0,0.00021369,2]
[363174297,1748609453540,-624.65,0.00021369,2]
[363174298,1748609453550,-430.0,0.00021369,2]
[363174299,1748609453563,-430.0,0.00021369,2]
[363174300,1748609453572,-1175.6,0.00021369,2]
[363174301,1748609453582,-465.82,0.00021369,2]
[363174302,1748609453591,-430.0,0.00021369,2]
[363174303,1748609453600,-2140.63,0.00021369,2]
[363174304,1748609453610,-430.0,0.00021369,2]
[363174305,1748609453619,-1378.27,0.00021369,2]
[363174306,1748609453629,-382.57,0.00021369,2]
[363174307,1748609453638,-940.85,0.00021369,2]
[363174308,1748609453648,-4666.86,0.00021369,2]
[363174309,1748609453657,-430.0,0.00021369,2]
[363174310,1748609453667,-370.98663862,0.00021369,2]
[363174311,1748609453679,-674.97,0.00021369,2]
[363174312,1748609453689,-430.0,0.00021369,2]
[363174313,1748609453701,-483.68,0.00021369,2]
[363174314,1748609453711,-510.09,0.00021369,2]
[363174315,1748609453720,-2216.44,0.00021369,2]
[363174316,1748609453729,-806.71,0.00021369,2]
[363174317,1748609453739,-643.55,0.00021369,2]
[363174318,1748609453748,-1572.01,0.00021369,2]
[363174319,1748609453759,-3998.41,0.00021369,2]
[363174320,1748609453768,-453.29,0.00021369,2]
[363174321,1748609453777,-1322.02,0.00021369,2]
[363174322,1748609453787,-6232.04,0.00021369,2]
[363174323,1748609453797,-535.86,0.00021369,2]
[363174324,1748609453806,-453.44,0.00021369,2]
[363174325,1748609453815,-430.0,0.00021369,2]
[363174326,1748609453825,-601.27,0.00021369,2]
[363174327,1748609453835,-687.17,0.00021369,2]
[363174328,1748609453845,-817.33,0.00021369,2]
[363174329,1748609453855,-430.0,0.00021369,2]
[363174330,1748609453864,-5958.29,0.00021369,2]
[363174331,1748609453874,-634.0,0.00021369,2]
[363174332,1748609453883,-430.0,0.00021369,2]
[363174333,1748609453893,-846.26,0.00021369,2]
[363174334,1748609453902,-430.0,0.00021369,2]
[363174335,1748609453911,-898.65,0.00021369,2]
[363174336,1748609453921,-888.2,0.00021369,2]
[363174337,1748609453935,-1075.5,0.00021369,2]
[363174338,1748609453944,-644.12,0.00021369,2]
[363174339,1748609453953,-430.0,0.00021369,2]
[363174340,1748609453963,-430.0,0.00021369,2]
[363174341,1748609453972,-4652.48,0.00021369,2]
[363174342,1748609453981,-675.1,0.00021369,2]
[363174343,1748609453990,-1421.13,0.00021369,2]
[363174344,1748609454000,-3397.81,0.00021369,2]
[363174345,1748609454009,-871.23,0.00021369,2]
[363174346,1748609454019,-536.90338702,0.00021369,2]
[363174347,1748609454029,-430.0,0.00021369,2]
[363174348,1748609454038,-1965.23,0.00021369,2]
[363174349,1748609454048,-938.36,0.00021369,2]
[363174350,1748609454058,-430.0,0.00021369,2]
[363174351,1748609454068,-4550.06,0.00021369,2]
[363174352,1748609454077,-1261.25,0.00021369,2]
[363174353,1748609454087,-1022.29,0.00021369,2]
[363174354,1748609454097,-541.22,0.00021369,2]
[363174355,1748609454106,-1016.79,0.00021369,2]
[363174356,1748609454116,-430.0,0.00021369,2]
[363174357,1748609454126,-430.0,0.00021369,2]
[363174358,1748609454135,-430.0,0.00021369,2]
[363174359,1748609454145,-475.13,0.00021369,2]
[363174360,1748609454154,-1673.97,0.00021369,2]
[363174361,1748609454164,-2156.88,0.00021369,2]
[363174362,1748609454174,-431.52,0.00021369,2]
[363174363,1748609454184,-646.77,0.00021369,2]
[363174364,1748609454194,-430.0,0.00021369,2]
[363174365,1748609454204,-2441.53,0.00021369,2]
[363174366,1748609454215,-430.0,0.00021369,2]
[363174367,1748609454224,-1350.07,0.00021369,2]
[363174368,1748609454234,-430.0,0.00021369,2]
[363174369,1748609454244,-3081.68,0.00021369,2]
[363174370,1748609454253,-2025.32,0.00021369,2]
[363174371,1748609454263,-659.88,0.00021369,2]
[363174372,1748609454272,-611.27,0.00021369,2]
[363174373,1748609454282,-430.0,0.00021369,2]
[363174374,1748609454291,-4608.15476834,0.00021452,5]
[363174375,1748609454300,-169.31565096,0.00021452,2]
[363174376,1748609454310,-169.31565096,0.00021534,2]
[363174377,1748609454319,-4583.06672459,0.00021547,2]
[363174378,1748609454329,-5000.0,0.00021579,2]
[363174379,1748609454338,-1606.0314283,0.00021595,2]
[363174380,1748609454348,-2176.89934839,0.00021612,12]
[363174381,1748609454357,-4608.15476834,0.00021624,5]
[363174382,1748609454367,-1025.58858742,0.00021631,2]
[363174383,1748609454377,-472.22383404,0.00021643,2]
[363174384,1748609454387,-430.0,0.00021643,2]
[363174385,1748609454397,-774.98,0.00021643,2]
[363174386,1748609454407,-670.78,0.00021643,2]
[363174387,1748609454416,-430.0,0.00021643,2]
[363174388,1748609454429,-430.0,0.00021643,2]
[363174389,1748609454438,-430.0,0.00021643,2]
[363174390,1748609454448,-624.65,0.00021643,2]
[363174391,1748609454457,-430.0,0.00021643,2]
[363174392,1748609454468,-430.0,0.00021643,2]
[363174393,1748609454479,-1175.6,0.00021643,2]
[363174394,1748609454489,-430.0,0.00021643,2]
[363174395,1748609454499,-2140.63,0.00021643,2]
[363174396,1748609454508,-430.0,0.00021643,2]
[363174397,1748609454519,-1378.27,0.00021643,2]
[363174398,1748609454528,-940.85,0.00021643,2]
[363174399,1748609454538,-4666.86,0.00021643,2]
[363174400,1748609454548,-430.0,0.00021643,2]
[363174401,1748609454559,-674.97,0.00021643,2]
[363174402,1748609454570,-430.0,0.00021643,2]
[363174403,1748609454579,-483.68,0.00021643,2]
[363174404,1748609454589,-510.09,0.00021643,2]
[363174405,1748609454597,-2216.44,0.00021643,2]
[363174406,1748609454607,-806.71,0.00021643,2]
[363174407,1748609454616,-643.55,0.00021643,2]
[363174408,1748609454626,-1572.01,0.00021643,2]
[363174409,1748609454635,-3998.41,0.00021643,2]
[363174410,1748609454644,-453.29,0.00021643,2]
[363174411,1748609454654,-1322.02,0.00021643,2]
[363174412,1748609454664,-6232.04,0.00021643,2]
[363174413,1748609454675,-535.86,0.00021643,2]
[363174414,1748609454685,-453.44,0.00021643,2]
[363174415,1748609454694,-430.0,0.00021643,2]
[363174416,1748609454704,-601.27,0.00021643,2]
[363174417,1748609454713,-687.17,0.00021643,2]
[363174418,1748609454723,-817.33,0.00021643,2]
[363174419,1748609454733,-430.0,0.00021643,2]
[363174420,1748609454741,-5958.29,0.00021643,2]
[363174421,1748609454751,-634.0,0.00021643,2]
[363174422,1748609454760,-430.0,0.00021643,2]
[363174423,1748609454770,-846.26,0.00021643,2]
[363174424,1748609454779,-430.0,0.00021643,2]
[363174425,1748609454789,-898.65,0.00021643,2]
[363174426,1748609454798,-888.2,0.00021643,2]
[363174427,1748609454807,-1075.5,0.00021643,2]
[363174428,1748609454816,-644.12,0.00021643,2]
[363174429,1748609454826,-430.0,0.00021643,2]
[363174430,1748609454835,-430.0,0.00021643,2]
[363174431,1748609454845,-4652.48,0.00021643,2]
[363174432,1748609454854,-675.1,0.00021643,2]
[363174433,1748609454864,-1421.13,0.00021643,2]
[363174434,1748609454874,-3397.81,0.00021643,2]
[363174435,1748609454883,-871.23,0.00021643,2]
[363174436,1748609454893,-430.0,0.00021643,2]
[363174437,1748609454903,-1965.23,0.00021643,2]
[363174438,1748609454912,-938.36,0.00021643,2]
[363174439,1748609454922,-430.0,0.00021643,2]
[363174440,1748609454935,-4550.06,0.00021643,2]
[363174441,1748609454944,-1261.25,0.00021643,2]
[363174442,1748609454954,-1022.29,0.00021643,2]
[363174443,1748609454963,-541.22,0.00021643,2]
[363174444,1748609454973,-1016.79,0.00021643,2]
[363174445,1748609454983,-430.0,0.00021643,2]
[363174446,1748609454992,-430.0,0.00021643,2]
[363174447,1748609455002,-430.0,0.00021643,2]
[363174448,1748609455011,-475.13,0.00021643,2]
[363174449,1748609455020,-1673.97,0.00021643,2]
[363174450,1748609455029,-2156.88,0.00021643,2]
[363174451,1748609455039,-431.52,0.00021643,2]
[363174452,1748609455049,-646.77,0.00021643,2]
[363174453,1748609455059,-430.0,0.00021643,2]
[363174454,1748609455068,-2441.53,0.00021643,2]
[363174455,1748609455078,-430.0,0.00021643,2]
[363174456,1748609455087,-1350.07,0.00021643,2]
[363174457,1748609455097,-430.0,0.00021643,2]
[363174458,1748609455106,-3081.68,0.00021643,2]
[363174459,1748609455116,-2025.32,0.00021643,2]
[363174460,1748609455125,-659.88,0.00021643,2]
[363174461,1748609455135,-611.27,0.00021643,2]
[363174462,1748609455145,-430.0,0.00021643,2]
[363174463,1748609455154,-169.31565096,0.00021644,2]
[363174464,1748609455164,-2200.0,0.00021649,2]
[363174465,1748609455173,-2000.0,0.00021692,2]
[363174466,1748609455184,-2000.0,0.00021692,2]
[363174467,1748609455194,-2000.0,0.00021692,2]
[363174468,1748609455204,-169.31565096,0.00021753,2]
[363174469,1748609455213,-900.0,0.00021775,2]
[363174470,1748609455223,-4608.15476834,0.00021797,6]
[363174471,1748609455232,-160.0,0.00021811,4]
[363174472,1748609455242,-1013.79071032,0.00021852,2]
[363174473,1748609455252,-2176.89934839,0.00021855,13]
[363174474,1748609455262,-169.31565096,0.00021863,2]
[363174475,1748609455271,-200.0,0.00021917,2]
[363174476,1748609455281,-500.0,0.00021917,2]
[363174477,1748609455290,-430.0,0.00021917,2]
[363174478,1748609455299,-774.98,0.00021917,2]
[363174479,1748609455309,-670.78,0.00021917,2]
[363174480,1748609455319,-430.0,0.00021917,2]
[363174481,1748609455442,-174.81610449,0.00021917,2]
[363174482,1748609455452,-430.0,0.00021917,2]
[363174483,1748609455462,-624.65,0.00021917,2]
[363174484,1748609455471,-430.0,0.00021917,2]
[363174485,1748609455484,-500.0,0.00021917,2]
[363174486,1748609455494,-500.0,0.00021917,2]
[363174487,1748609455504,-500.0,0.00021917,2]
[363174488,1748609455513,-500.0,0.00021917,2]
[363174489,1748609455524,-500.0,0.00021917,2]
[363174490,1748609455534,-500.0,0.00021917,2]
[363174491,1748609455544,-500.0,0.00021917,2]
[363174492,1748609455556,-500.0,0.00021917,2]
[363174493,1748609455566,-500.0,0.00021917,2]
[363174494,1748609455575,-500.0,0.00021917,2]
[363174495,1748609455585,-500.0,0.00021917,2]
[363174496,1748609455594,-430.0,0.00021917,2]
[363174497,1748609455604,-1175.6,0.00021917,2]